fUSD/lending_fUSD_20250814
["ID","MTS","AMOUNT","RATE_DAILY","PERIOD"]
[379133574,1755153188646,-10978.25028915,0.00021,2]
[379133575,1755153191593,1193.29,0.00020579,120]
[379133578,1755153226459,-503.60571395,0.00020973,2]
[379133579,1755153226485,-8066.23427779,0.00021,2]
[379133580,1755153226509,-500.0,0.00021042,2]
[379133581,1755153226532,-21243.55,0.00021422,2]
[379133582,1755153226559,-702.91,0.00021694,2]
[379133583,1755153226583,-150.0,0.00021788,2]
[379133584,1755153226606,-185.00680883,0.00021818,2]
[379133585,1755153226629,-183.38,0.00021883,2]
[379133586,1755153226651,-1065.14939265,0.000219,2]
[379133587,1755153226676,-167.4536677,0.000219,2]
[379133588,1755153226699,-666.0,0.00021918,3]
[379133589,1755153226721,-159.86769431,0.00021918,2]
[379133590,1755153226746,-200.52759154,0.00021918,2]
[379133591,1755153226769,-500.0,0.00021973,2]
[379133592,1755153226792,-500.0,0.00021973,2]
[379133593,1755153226830,-500.0,0.00021973,2]
[379133594,1755153226856,-500.0,0.00021973,2]
[379133595,1755153226879,-500.0,0.00021973,2]
[379133596,1755153226902,-500.0,0.00021973,2]
[379133597,1755153226924,-500.0,0.00021973,2]
[379133598,1755153226947,-500.0,0.00021973,2]
[379133599,1755153226969,-500.0,0.00021973,2]
[379133600,1755153226993,-500.0,0.00021973,2]
[379133601,1755153227015,-507.63299967,0.00021973,2]
[379133602,1755153227038,-156.44,0.0002199,2]
[379133603,1755153227063,-500.0,0.00021999,2]
[379133604,1755153227086,-178.13613401,0.00021999,2]
[379133605,1755153227111,-151.45986272,0.00021999,2]
[379133606,1755153227136,-214.09327419,0.00021999,2]
[379133607,1755153227163,-192.44226635,0.00021999,2]
[379133608,1755153227186,-360559.87409165,0.00022,4]
[379133609,1755153227210,-208.86,0.00022,2]
[379133610,1755153227234,-1000.0,0.00022055,3]
[379133611,1755153227257,-250.0,0.00022055,2]
[379133612,1755153227281,-300.0,0.00022055,2]
[379133613,1755153227304,-300.0,0.00022055,2]
[379133614,1755153227327,-235.18018332,0.0002211,2]
[379133615,1755153227350,-3120.78109616,0.000225,2]
[379133616,1755153227373,-505.64091826,0.00022521,2]
[379133617,1755153227399,-1477.0,0.00022761,2]
[379133618,1755153227422,-702.91,0.00022779,2]
[379133619,1755153227453,-420.0,0.00022813,2]
[379133620,1755153227485,-9618.66044841,0.00022877,2]
[379133621,1755153227508,-261.52,0.00023164,2]
[379133622,1755153227533,-150.99,0.00023368,2]
[379133623,1755153227557,-9999.99,0.00023368,2]
[379133624,1755153227582,-9999.99,0.00023368,2]
[379133625,1755153227606,-9999.99,0.00023368,2]
[379133626,1755153227629,-414.46,0.00023368,2]
[379133627,1755153227654,-9999.99,0.00023368,2]
[379133628,1755153227678,-150.99,0.00023368,2]
[379133629,1755153227703,-999.99,0.00023368,2]
[379133630,1755153227729,-500.0,0.00023373,2]
[379133631,1755153227752,-4766.01624109,0.00023748,3]
[379133632,1755153227780,-458.13769775,0.00023748,3]
[379133633,1755153227805,-702.91,0.00023864,2]
[379133634,1755153227829,-60575.73177408,0.00024,2]
[379133635,1755153227853,-8327.49329345,0.00024,14]
[379133636,1755153227879,-208.86,0.00024333,2]
[379133637,1755153227904,-419.6,0.00024335,2]
[379133638,1755153227928,-226.60977974,0.00024572,2]
[379133639,1755153227954,-245.5,0.00024685,30]
[379133640,1755153227983,-500.0,0.00024773,2]
[379133641,1755153228013,-240958.853363,0.000248,2]
[379133642,1755153228039,-587.0,0.00024816,2]
[379133643,1755153228066,-5603.69426426,0.0002489,2]
[379133644,1755153228093,-2070.70893964,0.000249,2]
[379133645,1755153228118,-106518.256962,0.000249,2]
[379133646,1755153228145,-702.91,0.00024949,2]
[379133647,1755153228170,-150.0,0.00025,30]
[379133648,1755153228194,-252.1421982,0.00025321,2]
[379133649,1755153228219,-702.91,0.00026033,2]
[379133650,1755153228246,-458.13769775,0.00026356,2]
[379133651,1755153228563,-161.11159332,0.00026658,14]
[379133652,1755153228589,-208.86,0.00026666,7]
[379133653,1755153228615,-154.41,0.00026676,2]
[379133654,1755153228642,-5603.69426426,0.00026844,2]
[379133655,1755153228672,-11835.3618846,0.00026844,2]
[379133656,1755153228699,-9618.66044841,0.00026854,2]
[379133657,1755153228725,-641.0,0.00026995,2]
[379133658,1755153228752,-512.0,0.00027137,2]
[379133659,1755153228779,-518.0,0.00027137,2]
[379133660,1755153228806,-682.19275,0.00027137,2]
[379133661,1755153228837,-3585.78688486,0.0002739,7]
[379133662,1755153228861,-154.35800514,0.000274,2]
[379133663,1755153228885,-154.35800513,0.000274,2]
[379133664,1755153228914,-2070.70893955,0.00027827,8]
[379133665,1755153228939,-156.44,0.0002789,2]
[379133666,1755153228964,-94682.8950772,0.0002789,2]
[379133667,1755153228990,-179014.56044687,0.000279,3]
[379133668,1755153229014,-2311.73,0.0002862,2]
[379133669,1755153229038,-1000.0,0.00028861,7]
[379133670,1755153229063,-208.86,0.00028999,30]
[379133671,1755153229087,-419.6,0.00029287,2]
[379133672,1755153229112,-512.0,0.00029919,5]
[379133673,1755153229136,-10000.0,0.0003,10]
[379133674,1755153229161,-2002.63972752,0.0003,2]
[379133675,1755153235591,458.13769775,0.00026356,2]
[379133676,1755153244423,500.0,0.00021973,2]
[379133677,1755153255748,1932.66167701,0.000249,2]
[379133678,1755153255838,1932.66167691,0.00027827,8]
[379133679,1755153320004,169.021808,7.945e-05,2]
[379133682,1755153348341,150.0,0.00025,30]
[379133683,1755153355362,411.6,0.00029005,2]
[379133684,1755153355661,411.6,0.00024024,2]
[379133685,1755153356519,512.0,0.00027137,2]
[379133686,1755153358613,296.28485188,0.0003,2]
[379133687,1755153361256,1000.0,0.00030105,120]
[379133688,1755153363834,300.0,0.00030105,120]
[379133689,1755153364138,500.0,0.00030105,120]
[379133690,1755153364432,2500.0,0.00030105,120]
[379133691,1755153411688,176.41,0.00016712,2]
[379133694,1755153431173,1803.81756529,0.000249,2]
[379133695,1755153431270,1803.81756511,0.00027827,8]
[379133698,1755153470320,150.0,0.00025,30]
[379133699,1755153482142,150.0,0.00027397,2]
[379133700,1755153482381,150.0,0.00028767,2]
[379133705,1755153605842,500.0,0.00030105,120]
[379133706,1755153615379,2500.0,0.00030089,120]
[379133707,1755153615464,2500.0,0.00030132,120]
[379133708,1755153616380,1683.56306104,0.000249,2]
[379133709,1755153616486,1683.56306076,0.00027827,8]
[379133710,1755153617163,1000.0,0.00030089,120]
[379133711,1755153617231,1000.0,0.00030132,120]
[379133713,1755153654886,343.0,0.00029005,2]
[379133714,1755153655201,343.0,0.00024024,2]
[379133715,1755153666244,512.0,0.00027137,2]
[379133717,1755153714415,161.91,0.00028753,2]
[379133718,1755153722356,300.0,0.00030097,120]
[379133719,1755153722448,300.0,0.00030114,120]
[379133720,1755153723335,500.0,0.00030097,120]
[379133721,1755153724112,2500.0,0.00030097,120]
[379133722,1755153724244,2500.0,0.00030114,120]
[379133723,1755153725665,1000.0,0.00030097,120]
[379133724,1755153801527,1571.32552355,0.000249,2]
[379133725,1755153801719,1571.32552337,0.00027827,8]
[379133728,1755153841727,300.0,0.00030063,120]
[379133729,1755153841827,300.0,0.00030094,120]
[379133730,1755153842628,500.0,0.00030063,120]
[379133731,1755153845252,1000.0,0.00030063,120]
[379133735,1755153955872,285.8,0.00029005,2]
[379133736,1755153956302,285.8,0.00024024,2]
[379133737,1755153959844,154.72,0.00013699,2]
[379133738,1755153960053,154.72,0.00020548,2]
[379133739,1755153960472,154.72,0.00027397,2]
[379133740,1755153961666,300.0,0.00030047,120]
[379133741,1755153961758,300.0,0.00030093,120]
[379133742,1755153963456,171.82219271,0.00029989,2]
[379133743,1755153964840,1000.0,0.00030047,120]
[379133744,1755153967445,1000.0,0.00030093,120]
[379133745,1755153975974,512.0,0.00027137,2]
[379133746,1755153983418,312.0,0.0003,7]
[379133747,1755153986293,1466.57048873,0.000249,2]
[379133748,1755153986436,1466.57048847,0.00027827,8]
[379133749,1755154026118,-157.3066552,0.00030037,2]
[379133750,1755154026141,-250.0,0.00030047,2]
[379133751,1755154026163,-250.0,0.00030093,2]
[379133752,1755154026185,-127.0997844,0.00030105,2]
[379133754,1755154048720,-72.9002156,0.00030105,2]
[379133755,1755154048747,-150.0,0.00030136,2]
[379133756,1755154048773,-1749.18,0.00030137,7]
[379133757,1755154048801,-512.0,0.00030441,5]
[379133758,1755154048827,-165.72109766,0.00030653,2]
[379133759,1755154048853,-400.0,0.00030753,2]
[379133760,1755154048879,-1200.0,0.00030753,2]
[379133761,1755154048904,-443.19,0.00030754,2]
[379133762,1755154048928,-1760.49,0.00030754,10]
[379133763,1755154048952,-150.99,0.00030754,2]
[379133764,1755154048977,-299.99,0.00030754,12]
[379133765,1755154049001,-8683.67,0.00030754,2]
[379133766,1755154049029,-1466.57048847,0.00030754,14]
[379133767,1755154049054,-245.5,0.00030909,30]
[379133768,1755154049079,-165.72109766,0.00031207,2]
[379133769,1755154049105,-458.13769775,0.00031315,2]
[379133770,1755154049130,-232.95,0.00031413,2]
[379133771,1755154049155,-164.6,0.00031413,2]
[379133772,1755154049181,-1132.11,0.00031421,2]
[379133773,1755154049205,-19217.61202405,0.0003143,4]
[379133774,1755154049231,-200.0,0.00031457,2]
[379133775,1755154049256,-1697.04,0.00031492,2]
[379133776,1755154049282,-150.0,0.00031506,2]
[379133777,1755154049307,-1000.0,0.00031526,2]
[379133778,1755154049332,-305.84,0.00031566,2]
[379133779,1755154049358,-250.0,0.00031629,2]
[379133780,1755154049383,-1000.0,0.00031639,2]
[379133781,1755154049408,-200.0,0.00031639,2]
[379133782,1755154049435,-6630.61,0.00031645,2]
[379133783,1755154049460,-165.72109766,0.0003176,2]
[379133784,1755154049485,-1578.34,0.00031769,2]
[379133785,1755154049509,-2956.94,0.0003182,2]
[379133786,1755154049533,-237.0,0.0003186,2]
[379133787,1755154049557,-5000.0,0.0003191,2]
[379133788,1755154049583,-150.36,0.00031969,2]
[379133789,1755154049609,-150.36,0.00031986,2]
[379133790,1755154049635,-150.36,0.00032002,2]
[379133791,1755154049660,-150.36,0.00032019,2]
[379133792,1755154049689,-150.36,0.00032036,2]
[379133793,1755154049716,-150.36,0.00032053,2]
[379133794,1755154049744,-150.36,0.0003207,2]
[379133795,1755154049771,-7402.95,0.00032076,2]
[379133796,1755154049798,-150.36,0.00032087,2]
[379133797,1755154049827,-175.38,0.00032091,120]
[379133798,1755154049855,-150.36,0.00032103,2]
[379133799,1755154049881,-150.36,0.0003212,2]
[379133800,1755154049906,-150.36,0.00032137,2]
[379133801,1755154049935,-150.36,0.00032154,2]
[379133802,1755154049963,-150.36,0.00032171,2]
[379133803,1755154049993,-150.36,0.00032188,2]
[379133804,1755154050020,-150.36,0.00032204,2]
[379133805,1755154050046,-150.36,0.00032221,2]
[379133806,1755154050072,-6591.93,0.00032222,2]
[379133807,1755154050099,-150.36,0.00032238,2]
[379133808,1755154050130,-150.36,0.00032255,2]
[379133809,1755154050255,-3514.1,0.00032269,2]
[379133810,1755154050282,-150.36,0.00032272,2]
[379133811,1755154050309,-150.36,0.00032288,2]
[379133812,1755154050335,-1215.86,0.00032301,2]
[379133813,1755154050360,-1215.86,0.00032318,2]
[379133814,1755154050388,-1215.86,0.00032335,2]
[379133815,1755154050414,-1215.86,0.00032352,2]
[379133816,1755154050438,-2109.8396,0.00032361,2]
[379133817,1755154050462,-180.55,0.00032362,2]
[379133818,1755154050488,-1215.86,0.00032369,2]
[379133819,1755154050514,-1215.86,0.00032386,2]
[379133820,1755154050539,-1215.86,0.00032403,2]
[379133821,1755154050564,-1215.86,0.0003242,2]
[379133822,1755154050588,-1215.86,0.00032437,2]
[379133823,1755154050614,-1215.86,0.00032454,2]
[379133824,1755154050639,-1215.86,0.00032471,2]
[379133825,1755154050663,-1215.86,0.00032488,2]
[379133826,1755154050687,-160.58,0.00032505,2]
[379133827,1755154050715,-1215.86,0.00032505,2]
[379133828,1755154050741,-1215.86,0.00032522,2]
[379133829,1755154050766,-1215.86,0.00032539,2]
[379133830,1755154050791,-1215.86,0.00032556,2]
[379133831,1755154050816,-1215.86,0.00032573,2]
[379133832,1755154050842,-1215.86,0.0003259,2]
[379133833,1755154050882,-1215.86,0.00032607,2]
[379133834,1755154050930,-1215.86,0.00032624,2]
[379133835,1755154050955,-305.84,0.00032749,2]
[379133836,1755154050981,-167.78,0.00032868,2]
[379133837,1755154051008,-226.76,0.00032875,120]
[379133838,1755154051033,-150.0,0.00032876,2]
[379133839,1755154051060,-300.0,0.00033006,120]
[379133840,1755154051084,-500.0,0.00033006,120]
[379133841,1755154051123,-2500.0,0.00033006,120]
[379133842,1755154051152,-1000.0,0.00033006,120]
[379133843,1755154051177,-250.0,0.00033006,2]
[379133844,1755154051203,-300.0,0.0003304,120]
[379133845,1755154051228,-500.0,0.0003304,120]
[379133846,1755154051254,-2500.0,0.0003304,120]
[379133847,1755154051280,-1000.0,0.0003304,120]
[379133848,1755154051307,-300.0,0.00033098,120]
[379133849,1755154051334,-500.0,0.00033098,120]
[379133850,1755154051360,-2500.0,0.00033098,120]
[379133851,1755154051387,-1000.0,0.00033098,120]
[379133852,1755154051413,-300.0,0.00033098,120]
[379133853,1755154051441,-3400.775,0.00033306,35]
[379133854,1755154051466,-174.102,0.00033306,35]
[379133855,1755154051490,-188.62417509,0.00033529,7]
[379133856,1755154051518,-634.57487837,0.00033529,7]
[379133857,1755154051543,-2767.89878943,0.0003353,2]
[379133858,1755154051566,-15257.4182,0.0003353,2]
[379133859,1755154051589,-1000.0,0.0003353,2]
[379133860,1755154051618,-1466.57048847,0.00033682,21]
[379133861,1755154051648,-512.0,0.00033745,9]
[379133862,1755154051675,-305.84,0.00033933,2]
[379133863,1755154051705,-285.8,0.00033985,4]
[379133864,1755154051732,-150.0,0.00034246,2]
[379133865,1755154051758,-154.72,0.00034247,2]
[379133866,1755154051786,-237.0,0.0003433,2]
[379133867,1755154051811,-6084.0,0.00034639,2]
[379133868,1755154051836,-4149.0,0.00034639,2]
[379133869,1755154051862,-1254.0,0.00034639,2]
[379133870,1755154051887,-810.0,0.00034639,2]
[379133871,1755154051914,-3369.0,0.00034639,2]
[379133872,1755154051939,-716.0,0.00034639,2]
[379133873,1755154051965,-2028.0,0.00034639,2]
[379133874,1755154051991,-286.857,0.00034639,2]
[379133875,1755154052018,-1655.0,0.00034639,2]
[379133876,1755154052044,-1301.84,0.00034639,2]
[379133877,1755154052072,-661.542,0.00034639,2]
[379133878,1755154052098,-1187.479,0.00034639,2]
[379133879,1755154052124,-3124.51831724,0.0003489,14]
[379133880,1755154052149,-300.0,0.00035,120]
[379133881,1755154052179,-3900.0,0.00035,7]
[379133882,1755154052206,-211.0,0.00035,30]
[379133883,1755154052234,-305.84,0.00035117,2]
[379133884,1755154052260,-160.0,0.0003527,2]
[379133885,1755154052286,-1386.78395259,0.0003527,2]
[379133886,1755154052312,-300.0,0.0003527,2]
[379133887,1755154052338,-277.35679052,0.0003527,2]
[379133888,1755154052365,-250.0,0.0003527,2]
[379133889,1755154052402,-250.0,0.0003527,2]
[379133890,1755154052428,-250.0,0.0003527,2]
[379133891,1755154052457,-250.0,0.0003527,2]
[379133892,1755154052483,-250.0,0.0003527,2]
[379133893,1755154052511,-250.0,0.0003527,2]
[379133894,1755154052537,-151.0,0.0003527,2]
[379133895,1755154052563,-250.0,0.0003527,2]
[379133896,1755154052589,-176.21945025,0.0003527,2]
[379133897,1755154052615,-200.0,0.0003527,2]
[379133898,1755154052642,-200.0,0.0003527,2]
[379133899,1755154052670,-200.0,0.0003527,2]
[379133900,1755154052699,-200.0,0.0003527,2]
[379133901,1755154052730,-258.23615943,0.0003527,2]
[379133902,1755154052759,-200.0,0.0003527,2]
[379133903,1755154052787,-200.0,0.0003527,2]
[379133904,1755154052815,-200.0,0.0003527,2]
[379133905,1755154052843,-200.0,0.0003527,2]
[379133906,1755154052869,-600.0,0.0003527,2]
[379133907,1755154052896,-157.25305933,0.0003527,2]
[379133908,1755154052923,-167.78,0.00035581,2]
[379133909,1755154052950,-1000.0,0.00035594,2]
[379133910,1755154052977,-150.0,0.00035616,2]
[379133911,1755154053004,-2767.89878938,0.00035696,2]
[379133912,1755154053030,-22514.88384785,0.00036241,2]
[379133913,1755154053058,-3972.04,0.00036261,30]
[379133914,1755154053340,-19999.99,0.00036261,2]
[379133915,1755154053372,-305.84,0.000363,2]
[379133916,1755154053399,-501.61970843,0.00036573,5]
[379133917,1755154053428,-1466.57048847,0.00036609,27]
[379133918,1755154053455,-160.0,0.00036639,2]
[379133919,1755154053480,-311.1,0.00036639,2]
[379133920,1755154053507,-287.61899177,0.00036639,2]
[379133921,1755154053532,-237.0,0.000368,2]
[379133922,1755154053571,-215.28620793,0.000369,120]
[379133923,1755154053598,-150.0,0.00036986,2]
[379133924,1755154053627,-512.0,0.00037049,12]
[379133925,1755154053655,-245.5,0.00037133,30]
[379133926,1755154053683,-183.87172437,0.000372,120]
[379133927,1755154053713,-4145.0,0.00037639,2]
[379133928,1755154053740,-1254.0,0.00037639,2]
[379133929,1755154053767,-810.0,0.00037639,2]
[379133930,1755154053793,-3369.0,0.00037639,2]
[379133931,1755154053821,-2028.0,0.00037639,2]
[379133932,1755154053848,-538.69,0.00037726,2]
[379133933,1755154053874,-165.84,0.00037726,2]
[379133934,1755154053901,-905.53,0.00037805,2]
[379133935,1755154053932,-2767.89878938,0.00037862,2]
[379133936,1755154053962,-2149.4109,0.00037877,60]
[379133937,1755154053991,-1044.0,0.00037878,60]
[379133938,1755154054020,-1044.0,0.00037978,60]
[379133939,1755154054047,-162.0,0.00038,120]
[379133940,1755154054079,-500.0,0.00038,120]
[379133941,1755154054111,-500.0,0.00038,120]
[379133942,1755154054139,-322.6107,0.00038008,2]
[379133943,1755154054168,-298.26089446,0.00038008,2]
[379133944,1755154054199,-1044.0,0.00038078,60]
[379133945,1755154054229,-1044.0,0.00038178,60]
[379133946,1755154054259,-1044.0,0.00038278,60]
[379133947,1755154054287,-167.78,0.00038293,2]
[379133948,1755154054312,-500.40590492,0.00038313,5]
[379133949,1755154054338,-530.09559838,0.00038313,5]
[379133950,1755154054365,-150.0,0.00038356,2]
[379133951,1755154054392,-165.69297573,0.00038356,2]
[379133952,1755154054424,-1044.0,0.00038378,120]
[379133953,1755154054453,-168.0,0.00038423,2]
[379133954,1755154054482,-183.87172437,0.00038459,120]
[379133955,1755154054511,-1044.0,0.00038478,120]
[379133956,1755154054540,-168.0,0.00038481,2]
[379133957,1755154054571,-1044.0,0.00038578,120]
[379133958,1755154054598,-253.0,0.00038588,7]
[379133959,1755154054630,-253.0,0.00038595,120]
[379133960,1755154054664,-253.0,0.00038637,7]
[379133961,1755154054693,-4070.61,0.00038657,120]
[379133962,1755154054721,-168.0,0.00038675,2]
[379133963,1755154054750,-1044.0,0.00038678,120]
[379133964,1755154054778,-4070.61,0.00038712,120]
[379133965,1755154054804,-4070.61,0.00038767,120]
[379133966,1755154054832,-1044.0,0.00038778,120]
[379133967,1755154054860,-167.57030118,0.00038778,2]
[379133968,1755154054888,-4070.61,0.00038821,120]
[379133969,1755154054916,-4070.61,0.00038876,120]
[379133970,1755154054947,-1044.0,0.00038878,120]
[379133971,1755154054975,-4070.61,0.00038931,120]
[379133972,1755154055003,-285.8,0.00038966,7]
[379133973,1755154055034,-1044.0,0.00038978,120]
[379133974,1755154055062,-4070.61,0.00038986,120]
[379133975,1755154055092,-151.0,0.0003899,30]
[379133976,1755154055121,-151.0,0.00039,30]
[379133977,1755154055150,-4070.61,0.00039041,120]
[379133978,1755154055186,-253.0,0.00039076,2]
[379133979,1755154055227,-1044.0,0.00039078,120]
[379133980,1755154055256,-4070.61,0.00039095,120]
[379133981,1755154055285,-4070.61,0.0003915,120]
[379133982,1755154055317,-1044.0,0.00039178,120]
[379133983,1755154055349,-4070.61,0.00039205,120]
[379133984,1755154055379,-4070.61,0.0003926,120]
[379133985,1755154055411,-1228.2348,0.00039274,2]
[379133986,1755154055445,-1044.0,0.00039278,120]
[379133987,1755154055474,-237.0,0.0003928,2]
[379133988,1755154055502,-4070.61,0.00039315,120]
[379133989,1755154055532,-4070.61,0.00039369,120]
[379133990,1755154055561,-10580.71179427,0.00039374,2]
[379133991,1755154055590,-167.4536677,0.00039374,15]
[379133992,1755154055621,-1228.2348,0.00039374,2]
[379133993,1755154055649,-411.19152332,0.00039377,2]
[379133994,1755154055677,-309.29654756,0.00039377,2]
[379133995,1755154055711,-1044.0,0.00039378,120]
[379133996,1755154055740,-168.0,0.00039403,2]
[379133997,1755154055769,-4070.61,0.00039424,120]
[379133998,1755154055798,-190310.13,0.00039449,2]
[379133999,1755154055828,-1228.2348,0.00039474,2]
[379134000,1755154055857,-1044.0,0.00039478,120]
[379134001,1755154055884,-4070.61,0.00039479,120]
[379134002,1755154055911,-4070.61,0.00039534,120]
[379134003,1755154056507,-1466.57048847,0.00039536,33]
[379134004,1755154056535,-1000.0,0.00039549,2]
[379134005,1755154056564,-1228.2348,0.00039574,2]
[379134006,1755154056592,-1044.0,0.00039578,120]
[379134007,1755154056622,-4070.61,0.00039589,120]
[379134008,1755154056654,-168.0,0.00039595,7]
[379134009,1755154056680,-4070.61,0.00039643,120]
[379134010,1755154056720,-1228.2348,0.00039674,2]
[379134011,1755154056748,-1044.0,0.00039678,120]
[379134012,1755154056775,-4070.61,0.00039698,120]
[379134013,1755154056804,-168.0,0.0003971,2]
[379134014,1755154056832,-150.0,0.00039726,2]
[379134015,1755154056859,-164.747116,0.00039726,15]
[379134016,1755154056887,-253.0,0.00039729,120]
[379134017,1755154056912,-4070.61,0.00039753,120]
[379134018,1755154056941,-1228.2348,0.00039774,2]
[379134019,1755154056971,-1044.0,0.00039778,120]
[379134020,1755154056998,-4070.61,0.00039808,120]
[379134021,1755154057026,-4070.61,0.00039863,120]
[379134022,1755154057055,-1228.2348,0.00039874,2]
[379134023,1755154057084,-1044.0,0.00039878,120]
[379134024,1755154057110,-4070.74276912,0.00039917,120]
[379134025,1755154057139,-695.84236737,0.00039974,2]
[379134031,1755154145822,-170.0,0.00035138,7]
[379134032,1755154145851,-222.0,0.00035138,2]
[379134033,1755154145878,-475.8702,0.0003517,2]
[379134034,1755154145905,-300.0,0.00035204,120]
[379134035,1755154145931,-500.0,0.00035204,120]
[379134036,1755154145959,-250.0,0.00035204,2]
[379134037,1755154145986,-9274.81107495,0.0003527,2]
[379134038,1755154146012,-530.70486301,0.0003527,2]
[379134039,1755154146039,-243.4695377,0.0003527,2]
[379134040,1755154146063,-1386.78395259,0.0003527,2]
[379134041,1755154146092,-350.0,0.00037385,2]
[379134042,1755154146120,-350.0,0.00037458,7]
[379134043,1755154146148,-350.0,0.00037476,2]
[379134044,1755154146174,-300.0,0.00037582,120]
[379134045,1755154146202,-250.0,0.00037582,2]
[379134046,1755154146231,-350.0,0.00037771,7]
[379134047,1755154146259,-350.0,0.00037879,2]
[379134048,1755154146285,-827.69458187,0.00038009,2]
[379134049,1755154146314,-350.0,0.00038579,120]
[379134050,1755154146343,-300.0,0.00038652,120]
[379134051,1755154146369,-500.0,0.00038652,120]
[379134052,1755154146395,-2500.0,0.00038652,120]
[379134053,1755154146421,-1000.0,0.00038652,120]
[379134054,1755154146447,-250.0,0.00038652,2]
[379134055,1755154146471,-21022.88,0.00038944,2]
[379134056,1755154146498,-21363.8132,0.00038978,2]
[379134057,1755154146523,-1103.4880898,0.00039175,20]
[379134058,1755154146549,-359.77,0.0003935,2]
[379134059,1755154146580,-232.95,0.00039352,2]
[379134060,1755154146607,-532.39243263,0.00039974,2]
[379134061,1755154146633,-1044.0,0.00039978,120]
[379134062,1755154146659,-253.0,0.00039997,2]
[379134063,1755154146685,-413.18080948,0.0004,7]
[379134064,1755154146710,-5406.41835304,0.0004,25]
[379134065,1755154146738,-457.74237573,0.0004,30]
[379134066,1755154146762,-300.0,0.0004,30]
[379134067,1755154146787,-357.1746426,0.0004,30]
[379134068,1755154146817,-273.02736683,0.0004,30]
[379134069,1755154146842,-15969.29576378,0.0004,15]
[379134070,1755154146866,-196.80255944,0.0004,120]
[379134071,1755154146890,-164.76750518,0.0004,120]
[379134072,1755154146914,-410.04623045,0.0004,120]
[379134073,1755154146939,-300.59050193,0.0004,30]
[379134074,1755154146963,-1133.097,0.0004,120]
[379134075,1755154146988,-500.0,0.0004,120]
[379134076,1755154150378,151.0,0.00039943,2]
[379134077,1755154151723,152.0,0.00039943,2]
[379134078,1755154157181,150.0,0.0003955,2]
[379134084,1755154167336,-2767.89878938,0.00040028,15]
[379134085,1755154167367,-1228.2348,0.00040074,2]
[379134086,1755154167396,-1044.0,0.00040078,120]
[379134087,1755154167424,-168.0,0.00040087,120]
[379134089,1755154167451,-253.0,0.00040089,2]
[379134090,1755154167480,-1044.0,0.00040178,120]
[379134092,1755154167506,-611.08,0.00040192,30]
[379134093,1755154167532,-610.29,0.00040192,30]
[379134095,1755154167564,-1044.0,0.00040278,120]
[379134096,1755154167593,-606.84,0.00040294,30]
[379134097,1755154167621,-168.0,0.00040327,2]
[379134098,1755154167648,-168.0,0.00040347,2]
[379134099,1755154167676,-512.0,0.00040353,16]
[379134100,1755154167703,-1044.0,0.00040378,120]
[379134101,1755154167731,-168.0,0.00040474,7]
[379134102,1755154167762,-1044.0,0.00040478,120]
[379134103,1755154167787,-187.32248707,0.00040517,2]
[379134104,1755154167815,-156.82144561,0.00040517,120]
[379134105,1755154167842,-2020.72875242,0.00040517,12]
[379134106,1755154167867,-879.30141543,0.00040517,2]